bitfinex-derivatives/quotes_ETHF0:USTF0_20260207
["timestamp","ask_amount","ask_price","bid_price","bid_amount"]
[1770449442336,6.43387682,2019.1,2017.8,4.84676654]
[1770449442635,6.43387682,2019.1,2017.8,4.85293393]
[1770449442936,0.005049,2019.2,2018.3,4.59795672]
[1770449443241,6.43387682,2020.5,2018.3,4.59795672]
[1770449443430,6.43387682,2020.5,2018.8,4.55926594]
[1770449443633,6.43387682,2020.5,2019.0,4.55926594]
[1770449443832,6.43387682,2020.8,2019.4,4.55926594]
[1770449444339,6.43387682,2021.4,2019.8,4.51530964]
[1770449444541,6.43387682,2022.5,2019.8,4.51530964]
[1770449444735,6.43387682,2022.5,2020.0,4.51530964]
[1770449444942,6.43387682,2022.5,2020.0,4.76298964]
[1770449445138,6.43387682,2022.5,2020.6,4.51448134]
[1770449445337,6.43387682,2022.5,2020.4,8.15315581]
[1770449445338,6.43387682,2022.5,2020.8,4.72893473]
[1770449445540,6.43387682,2022.5,2021.1,4.48134473]
[1770449445737,6.43836073,2022.5,2021.1,0.00467654]
[1770449446230,6.68128682,2022.3,2020.0,4.48300286]
[1770449446435,6.43387682,2021.9,2020.3,4.48300286]
[1770449446832,6.43387682,2021.9,2020.3,0.30778664]
[1770449447035,6.43387682,2021.9,2020.0,4.48300286]
[1770449447238,6.43387682,2021.9,2020.6,4.44929156]
[1770449447533,6.43387682,2021.9,2020.5,8.13479093]
[1770449447534,6.43836073,2022.5,2021.3,8.13479093]
[1770449447740,6.43387682,2022.8,2021.8,4.44929156]
[1770449447934,2.76016774,2024.1,2021.5,4.44929156]
[1770449448131,6.43387682,2023.7,2021.7,4.44282598]
[1770449448336,6.43387682,2023.7,2020.4,5.4810281]
[1770449448337,6.43387682,2023.7,2021.4,4.41017001]
[1770449448831,6.43387682,2023.5,2021.4,4.41562856]
[1770449449035,0.00548876,2023.7,2021.4,0.00545855]
[1770449449036,6.43387682,2023.3,2021.4,0.00545855]
[1770449449238,6.43387682,2023.3,2021.6,4.37643918]
[1770449449444,6.43387682,2023.3,2021.7,4.37643918]
[1770449450040,6.43387682,2023.3,2022.3,4.18914734]
[1770449450245,6.43387682,2023.6,2022.3,4.18914734]
[1770449450444,6.43387682,2023.6,2022.0,4.15643938]
[1770449450741,6.43387682,2023.6,2021.4,8.14024948]
[1770449450742,6.43387682,2023.4,2021.4,0.00545855]
[1770449450935,6.43387682,2023.4,2021.4,4.16146407]
[1770449451737,6.43387682,2023.4,2021.6,4.12342469]
[1770449454238,6.43387682,2023.4,2021.4,0.00545855]
[1770449454545,6.43387682,2023.4,2021.4,4.12662354]
[1770449455940,6.43387682,2023.4,2021.7,3.80866889]
[1770449458545,6.43387682,2023.4,2021.4,3.83498101]
[1770449459148,6.43387682,2023.4,2021.7,3.82926243]
[1770449460048,6.43387682,2023.4,2021.4,0.00545855]
[1770449460248,6.43387682,2023.2,2021.4,0.00545855]
[1770449460445,6.43387682,2023.0,2021.4,0.00545855]
[1770449460749,6.43387682,2022.8,2020.8,3.82111471]
[1770449460952,6.43387682,2022.2,2020.0,8.45520213]
[1770449461255,6.43387682,2022.0,2020.4,11.92962951]
[1770449461440,6.43387682,2022.0,2020.4,3.79483858]
[1770449461846,6.43387682,2022.0,2020.4,3.79997755]
[1770449461847,6.43923833,2022.0,2020.4,3.79997755]
[1770449462247,6.43923833,2022.0,2020.8,3.70137762]
[1770449462851,6.43923833,2022.0,2020.5,3.67053587]
[1770449463355,6.43923833,2022.0,2021.1,8.13479093]
[1770449464144,6.43923833,2022.0,2020.5,3.97879542]
[1770449464350,6.43923833,2022.0,2020.5,0.24763]
[1770449464650,6.43923833,2022.0,2020.5,3.7001801]
[1770449464859,6.43923833,2022.0,2020.6,3.7001801]
[1770449465155,6.43923833,2022.0,2020.4,0.00513897]
[1770449465552,6.68667833,2022.0,2020.4,0.00513897]
[1770449465753,6.43923833,2022.0,2020.4,3.67057846]
[1770449467048,6.43923833,2022.0,2020.8,3.61110787]
[1770449468751,6.43923833,2022.0,2020.8,3.85868787]
[1770449468958,6.43923833,2022.0,2021.2,3.4521545]
[1770449469152,6.03136746,2022.4,2021.2,3.4521545]
[1770449469454,6.03136746,2022.4,2021.5,6.10172698]
[1770449469656,6.03136746,2022.4,2021.5,9.5464433]
[1770449470054,6.03136746,2022.4,2021.6,3.45989791]
[1770449470357,0.00580484,2022.4,2021.8,6.10172698]
[1770449470750,0.00580484,2022.4,2021.8,9.53176052]
[1770449471349,6.0371723,2022.4,2021.2,6.10172698]
[1770449471550,6.0371723,2022.4,2020.9,3.39971493]
[1770449471750,6.0371723,2022.4,2021.6,3.39971493]
[1770449472461,6.0371723,2022.4,2021.5,8.13955469]
[1770449472655,6.0371723,2022.4,2021.4,0.24751]
[1770449472858,6.0371723,2022.4,2021.1,8.13955469]
[1770449473052,6.0371723,2022.4,2020.8,3.37262048]
[1770449474254,6.03136746,2022.1,2020.4,0.00513897]
[1770449474656,6.03136746,2022.0,2020.4,3.32745952]
[1770449475255,8.75791859,2021.8,2020.4,0.00513897]
[1770449475452,6.03136746,2021.8,2020.4,0.00513897]
[1770449475658,6.03136746,2021.8,2020.4,3.29756107]
[1770449475863,6.03136746,2021.8,2020.5,11.43197679]
[1770449476552,6.03136746,2021.8,2020.9,11.39192011]
[1770449476756,6.03136746,2021.8,2021.0,3.25236542]
[1770449477158,6.03136746,2022.1,2021.0,3.25236542]
[1770449478262,6.0371723,2022.4,2021.4,3.17868567]
[1770449478463,6.0371723,2022.4,2021.1,3.14934528]
[1770449478864,6.0371723,2022.4,2020.9,8.13955469]
[1770449479067,6.0371723,2022.4,2020.9,11.28889997]
[1770449479652,6.03136746,2022.2,2020.4,0.00513897]
[1770449479858,6.03136746,2022.0,2020.4,0.00513897]
[1770449480257,6.03136746,2021.5,2020.0,3.40440028]
[1770449480457,6.03136746,2021.5,2020.0,0.3204112]
[1770449480671,6.27887746,2021.5,2019.7,3.08398908]
[1770449480856,6.03136746,2021.0,2019.6,3.40623938]
[1770449481164,6.03136746,2021.0,2019.6,0.3222503]
[1770449481363,6.03136746,2021.0,2019.6,0.00355362]
[1770449481565,6.03136746,2020.8,2018.7,3.05526154]
[1770449481762,6.03136746,2020.7,2018.7,3.05526154]
[1770449481962,6.03136746,2020.2,2018.5,0.32086976]
[1770449482160,6.03136746,2020.2,2018.8,3.0439222]
[1770449482365,6.03136746,2020.2,2019.1,11.18347689]
[1770449482567,6.03611245,2020.2,2019.1,3.04975262]
[1770449482762,6.03611245,2020.2,2019.1,0.00583042]
[1770449483464,6.03611245,2020.2,2019.1,3.02085109]
[1770449483673,0.00474499,2020.2,2019.1,3.02085109]
[1770449483973,6.03611245,2020.2,2019.1,0.00583042]
[1770449484171,6.03611245,2020.2,2019.1,2.99452073]
[1770449485264,6.03611245,2020.2,2019.1,0.00583042]
[1770449485867,6.03611245,2020.2,2018.2,8.13955469]
[1770449486172,6.03136746,2019.8,2018.0,2.97917456]
[1770449486769,6.03136746,2019.8,2017.7,2.95070262]
[1770449487066,6.27907746,2019.8,2017.9,2.9505594]
[1770449487673,6.27907746,2019.8,2017.9,3.26813939]
[1770449488070,6.27907746,2019.8,2017.9,0.31757999]
[1770449488370,6.03136746,2019.5,2017.7,0.00591415]
[1770449488761,8.13955469,2019.8,2017.7,0.00591415]
[1770449488762,6.03136746,2019.3,2017.7,0.00591415]
[1770449489068,6.03136746,2019.1,2016.9,2.67111044]
[1770449489377,6.03136746,2018.9,2016.9,2.67111044]
[1770449489767,6.03136746,2018.9,2016.9,2.98227435]
[1770449490174,6.03136746,2018.9,2016.9,2.9877103]
[1770449490375,6.03136746,2018.9,2016.9,0.31659986]
[1770449490576,6.03136746,2018.9,2016.9,2.95747715]
[1770449490776,6.03136746,2018.9,2016.9,0.31659986]
[1770449491172,6.03136746,2018.6,2016.9,0.00543595]
[1770449491372,6.03136746,2018.2,2016.0,10.75825447]
[1770449491566,6.03136746,2018.2,2016.1,2.61869978]
[1770449492170,6.03136746,2018.2,2016.1,2.93275869]
[1770449492366,6.03136746,2018.2,2016.1,2.93671997]
[1770449492974,6.03136746,2018.2,2016.1,0.31802019]
[1770449493280,6.03136746,2018.2,2016.4,2.57674039]
[1770449493677,6.03136746,2018.2,2016.3,8.13955469]
[1770449493874,6.03136746,2018.0,2016.1,2.89476058]
[1770449494778,6.03136746,2018.0,2016.6,2.53310967]
[1770449495174,6.03136746,2018.0,2015.7,1.14181]
[1770449495175,8.13955469,2017.8,2015.5,0.24823]
[1770449495376,6.03136746,2017.7,2015.5,2.75811192]
[1770449495684,6.03136746,2017.7,2015.3,8.13955469]
[1770449495685,6.27933746,2017.7,2015.8,2.52051189]
[1770449496087,6.27933746,2017.7,2015.8,2.83018027]
[1770449496287,6.03136746,2017.7,2015.8,2.83565178]
[1770449498487,6.03136746,2017.7,2015.8,3.08385178]
[1770449499390,6.03136746,2017.7,2016.2,2.32181588]
[1770449500289,6.03136746,2017.7,2016.2,2.56996588]
[1770449500489,6.03136746,2017.7,2016.4,2.6452873]
[1770449500894,6.03136746,2017.7,2016.6,2.3971673]
[1770449501089,6.03136746,2017.7,2016.4,0.24812]
[1770449501489,6.03136746,2017.7,2016.4,2.61865444]
[1770449501685,5.98889162,2018.5,2016.9,2.61859444]
[1770449501887,5.98889162,2018.5,2017.1,2.37053444]
[1770449502089,0.004636,2018.6,2017.7,2.35957549]
[1770449502284,5.98889162,2018.8,2017.7,0.00421415]
[1770449503187,5.99346921,2018.8,2017.7,0.00421415]
[1770449503383,5.99346921,2018.8,2017.7,2.3108694]
[1770449503592,5.98889162,2019.6,2018.2,2.30207766]
[1770449504591,5.98889162,2019.6,2018.4,2.27198458]
[1770449504592,5.99312961,2019.6,2018.4,2.27198458]
[1770449505188,5.99312961,2019.6,2018.1,2.27231048]
[1770449505889,5.98889162,2019.5,2017.7,0.00421415]
[1770449506196,5.98889162,2019.5,2017.7,2.27240056]
[1770449506495,5.98889162,2019.5,2017.7,0.00421415]
[1770449506892,6.23665162,2019.5,2017.7,2.24595846]
[1770449507700,6.23665162,2019.5,2017.7,0.00421415]
[1770449507896,6.23667162,2019.3,2017.7,0.00421415]
[1770449508293,5.98889162,2019.3,2017.7,2.1978482]
[1770449508799,5.98889162,2019.3,2017.9,2.19363405]
[1770449510000,5.98889162,2019.3,2017.8,2.41569709]
[1770449511004,5.98889162,2019.3,2017.7,0.00421415]
[1770449511500,5.98889162,2019.3,2017.1,0.24804]
[1770449511807,5.98889162,2018.6,2016.5,2.11696196]
[1770449512694,5.98889162,2018.6,2016.5,2.1206638]
[1770449512900,5.98889162,2018.6,2016.5,2.3687738]
[1770449513198,5.98889162,2018.6,2016.7,2.07381662]
[1770449515203,5.98889162,2018.6,2016.9,2.01331829]
[1770449515901,5.98889162,2018.6,2016.8,0.24808]
[1770449516299,5.98889162,2018.5,2016.8,0.24808]
[1770449516605,5.98889162,2018.5,2016.8,2.27939103]
[1770449517305,5.98889162,2018.5,2016.8,0.24808]
[1770449517495,5.98889162,2018.3,2016.8,0.24808]
[1770449517701,8.71544275,2018.3,2016.5,0.00370184]
[1770449518007,5.98889162,2018.0,2016.5,0.00370184]
[1770449518203,5.99430126,2018.0,2016.5,0.00370184]
[1770449518406,5.98889162,2017.9,2016.5,0.00370184]
[1770449518909,8.71544275,2017.9,2016.5,0.00370184]
[1770449519205,5.98889162,2017.8,2016.5,0.00370184]
[1770449519602,5.98889162,2017.8,2016.5,1.99450922]
[1770449520001,5.98889162,2017.8,2016.5,0.00370184]
[1770449520903,5.98889162,2017.6,2016.5,0.00370184]
[1770449521207,5.98889162,2017.6,2016.5,1.94193475]
[1770449521404,5.98889162,2017.9,2016.5,2.19005475]
[1770449521603,5.98889162,2017.9,2016.7,1.91320215]
[1770449521802,9.64e-06,2018.0,2017.4,1.91320215]
[1770449522198,5.98889162,2018.6,2017.6,1.92200585]
[1770449522405,5.98889162,2018.6,2017.5,0.24799]
[1770449522709,5.98889162,2018.6,2017.0,1.89706615]
[1770449523305,5.98889162,2018.6,2016.7,1.87273219]
[1770449523306,5.99242339,2018.6,2016.7,1.87273219]
[1770449523504,5.98889162,2018.2,2016.5,0.00370184]
[1770449523808,5.98889162,2018.2,2016.5,1.87643403]
[1770449524303,5.98889162,2018.2,2016.5,0.00370184]
[1770449524510,5.98889162,2017.7,2015.7,2.26594484]
[1770449524705,5.98889162,2017.7,2015.8,2.26594484]
[1770449524905,5.98889162,2017.7,2015.8,2.51414484]
[1770449525405,5.98889162,2017.7,2015.8,2.87701189]
[1770449525704,5.98889162,2017.7,2015.9,2.24075053]
[1770449526206,5.98889162,2017.7,2015.9,2.48894053]
[1770449526906,5.98889162,2017.7,2015.8,0.36889861]
[1770449527107,8.26163699,2017.4,2015.8,0.00603156]
[1770449527408,5.53508586,2017.4,2015.8,0.00603156]
[1770449527604,5.53508586,2017.4,2015.8,2.2185862]
[1770449527808,5.53508586,2017.4,2015.8,0.00603156]
[1770449528003,5.53508586,2017.2,2015.8,0.00603156]
[1770449528203,5.78312586,2017.2,2015.2,2.21255464]
[1770449528810,5.53508586,2017.0,2014.9,2.13098947]
[1770449529111,5.17958323,2016.8,2014.9,2.13098947]
[1770449529406,5.17958323,2016.8,2014.9,0.36891704]
[1770449529608,5.42766323,2016.8,2014.8,3.62240346]
[1770449529911,5.43372682,2016.8,2014.9,2.10905168]
[1770449530307,5.43372682,2016.8,2014.8,1.88841676]
[1770449530308,5.17958323,2016.6,2014.8,1.64009676]
[1770449530608,5.42769323,2016.6,2014.8,0.37506498]
[1770449531013,5.17958323,2016.4,2014.8,0.37506498]
[1770449531210,5.17958323,2016.4,2014.8,2.53000518]
[1770449533307,5.17958323,2016.4,2014.9,2.09805281]
[1770449533509,5.17958323,2016.7,2015.3,2.09805281]
[1770449534505,0.00606359,2016.8,2015.5,1.91020998]
[1770449534804,0.00606359,2016.8,2015.0,8.16661824]
[1770449534805,0.00606359,2016.8,2015.7,1.91020998]
[1770449535809,5.17958323,2017.3,2015.9,0.24819]
[1770449536105,5.17958323,2017.3,2015.9,2.25060826]
[1770449536308,5.17958323,2017.3,2015.4,1.97873848]
[1770449536917,5.18452887,2017.3,2015.4,1.97873848]
[1770449537417,5.18452887,2017.3,2015.6,1.95476651]
[1770449537913,5.18452887,2017.3,2014.9,2.87585092]
[1770449538215,5.18452887,2017.3,2015.3,1.95476651]
[1770449539916,5.18452887,2017.3,2015.3,2.20302651]
[1770449542512,5.17958323,2017.2,2015.3,2.20302651]
[1770449542922,5.17958323,2017.2,2015.3,1.95476651]
[1770449543120,5.17958323,2017.0,2015.3,1.95476651]
[1770449543515,5.17958323,2016.9,2015.3,1.95476651]
[1770449543921,5.17958323,2016.9,2014.9,1.78976028]
[1770449544121,5.17958323,2016.9,2015.2,1.78865942]
[1770449544720,5.17958323,2016.9,2015.9,1.7656459]
[1770449545022,5.17958323,2016.9,2015.7,0.24821]
[1770449545218,5.17958323,2016.9,2015.7,2.01312165]
[1770449545820,5.17958323,2016.9,2015.4,1.74198054]
[1770449546419,5.17958323,2016.9,2015.3,0.24827]
[1770449546620,5.17958323,2016.9,2015.1,1.72697633]
[1770449546922,5.17958323,2016.9,2014.8,3.2509159]
[1770449546923,5.17958323,2016.7,2014.8,2.10204131]
[1770449547225,5.17958323,2016.6,2014.8,2.10204131]
[1770449547418,5.17958323,2016.5,2014.8,2.10204131]
[1770449547925,5.17958323,2016.5,2014.8,0.37506498]
[1770449548123,5.42774323,2016.2,2014.8,0.37506498]
[1770449549225,5.17958323,2016.1,2014.8,0.37506498]
[1770449549424,5.42775323,2016.1,2014.2,1.28013174]
[1770449550018,5.42775323,2016.1,2014.2,1.65643562]
[1770449550219,5.42775323,2016.1,2014.3,1.65978107]
[1770449550420,5.42775323,2016.1,2014.3,0.004082]
[1770449550619,5.17958323,2015.9,2014.3,0.004082]
[1770449551415,5.42778323,2015.9,2014.3,0.004082]
[1770449551624,5.17958323,2015.9,2014.3,1.61855554]
[1770449552429,5.17958323,2015.9,2014.3,1.86694554]
[1770449553021,5.17958323,2015.9,2014.5,1.59194383]
[1770449553321,5.17958323,2015.9,2014.5,1.84030383]
[1770449553521,5.17958323,2015.9,2014.3,1.57374061]
[1770449553923,5.17958323,2015.9,2014.3,0.004082]
[1770449554124,5.17958323,2015.9,2014.3,1.57742847]
[1770449555325,5.17958323,2015.9,2014.3,0.004082]
[1770449555733,5.17958323,2015.8,2014.3,0.004082]
[1770449556033,4.83579682,2015.7,2014.3,0.004082]
[1770449556226,7.61161629,2015.7,2014.3,0.004082]
[1770449556421,4.83579682,2015.6,2014.3,0.004082]
[1770449556632,4.83579682,2015.3,2014.3,0.004082]
[1770449556933,4.83579682,2015.3,2013.8,1.52059697]
[1770449557134,4.83579682,2015.3,2013.8,1.89533816]
[1770449557532,4.83579682,2015.3,2013.8,0.37474119]
[1770449557732,4.83579682,2015.3,2013.7,1.31088143]
[1770449557933,4.83579682,2015.3,2013.7,1.31601863]
[1770449559231,4.83579682,2015.3,2013.7,1.69296721]
[1770449559637,4.83579682,2015.3,2014.1,0.39575269]
[1770449560134,4.83579682,2015.3,2013.7,1.69296721]
[1770449560735,4.83579682,2015.2,2013.7,1.82566025]
[1770449560936,4.83579682,2015.2,2013.8,1.44357447]
[1770449561135,4.83579682,2015.2,2013.7,0.38208578]
[1770449561332,4.83579682,2015.2,2013.8,1.44282294]
[1770449564443,4.83579682,2015.2,2013.8,1.35121405]
[1770449565545,4.83579682,2015.2,2013.7,0.38208578]
[1770449566945,4.83579682,2015.2,2013.7,1.67501554]
[1770449567137,4.83579682,2015.2,2013.7,0.38208578]
[1770449567540,4.83579682,2015.2,2013.8,1.27096128]
[1770449567739,4.83579682,2015.2,2013.7,0.38208578]
[1770449568044,4.83579682,2015.2,2013.7,1.65304706]
[1770449568442,4.83579682,2015.2,2013.8,1.25327164]
[1770449570239,4.83579682,2015.2,2013.7,0.38208578]
[1770449570645,4.83579682,2015.2,2013.7,1.58116802]
[1770449571244,4.83579682,2015.2,2013.8,1.19840479]
[1770449571944,4.83579682,2015.1,2013.8,1.19840479]
[1770449574549,4.83579682,2015.1,2014.1,1.29200249]
[1770449574847,4.83579682,2015.1,2013.8,1.29200249]
[1770449575449,4.83579682,2015.1,2014.0,1.27029336]
[1770449575748,4.84077446,2015.8,2014.5,1.27029336]
[1770449576143,4.84077446,2015.8,2014.3,1.30307924]
[1770449576647,4.84077446,2015.8,2014.4,1.28247729]
[1770449577547,4.84077446,2015.8,2014.6,1.2608518]
[1770449577747,4.83579682,2015.7,2014.3,1.2608518]
[1770449578550,4.83579682,2015.7,2014.1,2.87585092]
[1770449578551,4.83579682,2015.4,2013.8,1.21478614]
[1770449579759,4.83579682,2015.3,2013.8,1.19336243]
[1770449580451,4.83579682,2015.3,2014.0,1.20932964]
[1770449580747,4.83579682,2014.8,2013.7,0.38208578]
[1770449580946,4.83579682,2014.8,2013.7,1.59141542]
[1770449581254,4.83579682,2014.8,2013.8,1.20822274]
[1770449581454,4.83579682,2015.1,2013.8,1.20822274]
[1770449581754,4.83579682,2015.1,2013.8,1.1879806]
[1770449582353,4.83579682,2015.1,2013.8,1.16940283]
[1770449583362,4.83579682,2015.1,2013.7,0.38208578]
[1770449583949,7.62361123,2015.1,2013.7,0.38208578]
[1770449584150,4.83579682,2014.8,2013.7,0.38208578]
[1770449586153,4.85393675,2014.5,2012.8,4.08316079]
[1770449586358,4.85393675,2014.2,2012.9,1.72233864]
[1770449586659,4.85393675,2013.9,2012.6,10.75891994]
[1770449586852,4.85393675,2013.6,2012.6,10.75891994]
[1770449587052,4.85393675,2013.6,2012.1,5.3665142]
[1770449587257,4.85774579,2013.6,2012.1,2.40674516]
[1770449587657,4.85393675,2013.3,2012.1,0.41369382]
[1770449587851,4.85393675,2013.3,2011.8,6.14861097]
[1770449588055,4.85393675,2013.3,2011.7,2.91690527]
[1770449588456,4.85393675,2013.3,2011.7,0.40743688]
[1770449588661,4.85393675,2013.3,2011.5,6.39734097]
[1770449588865,4.85393675,2013.3,2011.6,0.00368017]
[1770449589065,4.85393675,2013.3,2011.6,2.91458856]
[1770449589563,4.85393675,2013.3,2012.1,0.39575269]
[1770449589861,4.85393675,2013.3,2011.6,0.41318047]
[1770449590650,4.65207779,2013.0,2011.6,0.41318047]
[1770449591865,4.90062779,2013.0,2011.6,0.41318047]
[1770449592360,4.65207779,2012.7,2011.6,0.41318047]
[1770449592955,4.90066779,2012.7,2011.0,0.22514638]
[1770449593761,4.65207779,2012.5,2011.0,0.22514638]
[1770449594154,4.65207779,2012.5,2011.0,0.64648281]
[1770449594359,4.65207779,2012.5,2011.2,8.95361561]
[1770449594763,4.65207779,2012.5,2011.0,0.64648281]
[1770449595059,4.65207779,2012.5,2011.0,3.45148745]
[1770449596862,4.65207779,2012.5,2011.0,0.64648281]
[1770449597657,4.65207779,2012.5,2011.0,3.39311992]
[1770449598566,4.65207779,2012.5,2011.0,0.64648281]
[1770449599361,4.65207779,2012.5,2011.3,2.7062962]
[1770449599862,4.65207779,2012.5,2011.2,6.14861097]
[1770449600061,4.65207779,2012.5,2011.8,6.14861097]
[1770449600567,4.65207779,2012.5,2011.5,8.86515593]
[1770449600969,4.65207779,2012.5,2011.6,2.6980413]
[1770449601658,4.65207779,2012.5,2011.5,6.14861097]
[1770449601862,4.65207779,2012.5,2011.3,2.92732465]
[1770449602168,4.65207779,2012.5,2011.3,2.67856465]
[1770449602961,4.65207779,2012.5,2011.6,2.68151717]
[1770449603463,8.23680904,2013.6,2011.5,6.14861097]
[1770449603464,4.65207779,2012.7,2011.9,2.66211839]
[1770449603667,4.65207779,2012.4,2011.1,2.66211839]
[1770449603864,4.65207779,2012.8,2011.6,2.66211839]
[1770449604063,4.65207779,2012.8,2011.4,2.66211839]
[1770449604461,4.65207779,2012.8,2011.8,0.39575269]
[1770449604870,4.65207779,2012.7,2011.1,2.58948176]
[1770449605576,4.65207779,2012.7,2011.2,8.71891413]
[1770449605782,4.65207779,2012.7,2011.2,2.57030316]
[1770449606467,4.65207779,2012.7,2010.9,6.14861097]
[1770449606468,4.65207779,2012.7,2011.1,2.48461572]
[1770449606666,4.65207779,2012.7,2011.2,2.48461572]
[1770449606872,4.65207779,2012.7,2010.9,2.48461572]
[1770449607071,4.65207779,2012.7,2011.1,2.48378771]
[1770449607269,4.65207779,2012.7,2011.0,3.11216358]
[1770449607468,4.65207779,2012.7,2011.1,2.46568077]
[1770449607676,4.65207779,2012.7,2011.2,2.46568077]
[1770449607878,4.65207779,2012.7,2011.0,3.11216358]
[1770449609084,4.65207779,2012.4,2011.0,0.64648281]
[1770449609389,4.65207779,2012.4,2011.1,2.46179562]
[1770449609577,4.65207779,2012.4,2011.2,6.14861097]
[1770449609777,4.65207779,2012.4,2011.2,8.61040659]
[1770449610179,4.65207779,2012.4,2011.3,2.83468357]
[1770449610981,4.65207779,2012.4,2011.1,2.83468357]
[1770449612085,4.65207779,2012.4,2011.4,2.73730048]
[1770449614476,4.65207779,2012.4,2011.1,2.65730544]
[1770449614985,4.65207779,2012.4,2011.3,2.65730544]
[1770449615483,4.65207779,2012.4,2011.0,3.28471866]
[1770449616080,4.65207779,2012.4,2011.3,2.63173]
[1770449616581,4.65207779,2012.4,2011.0,0.64648281]
[1770449616782,4.65207779,2012.4,2011.1,2.64155531]
[1770449617180,4.38884902,2012.3,2011.1,2.64155531]
[1770449619189,4.38884902,2012.3,2011.0,0.64648281]
[1770449619386,4.38884902,2012.2,2011.0,3.15096093]
[1770449619587,4.38884902,2012.2,2011.1,2.50447812]
[1770449619787,4.38884902,2012.2,2011.2,0.39575269]
[1770449619987,4.38884902,2012.2,2011.3,2.50447812]
[1770449622890,4.38884902,2012.2,2011.0,3.61161456]
[1770449623088,4.38884902,2012.2,2011.1,2.47328616]
[1770449625588,4.38884902,2012.2,2011.0,3.07083799]
[1770449626894,4.38884902,2012.1,2011.0,3.07083799]
[1770449627093,4.39333493,2012.1,2011.0,3.07083799]
[1770449627295,4.39333493,2012.1,2011.0,3.03749344]
[1770449627691,4.39333493,2012.1,2011.0,0.64648281]
[1770449627897,2.78781441,2011.9,2011.0,0.64648281]
[1770449628194,4.38884902,2011.8,2011.0,0.64648281]
[1770449628899,4.38884902,2011.2,2009.9,2.37484723]
[1770449629195,4.38884902,2011.2,2010.2,2.37352595]
[1770449629395,4.38884902,2011.2,2010.2,2.62241595]
[1770449629898,4.38884902,2011.4,2010.2,2.62755412]
[1770449630698,4.38884902,2011.4,2010.4,2.3759188]
[1770449631288,4.38884902,2011.9,2010.7,2.37586524]
[1770449631997,4.38884902,2011.9,2010.5,2.60788069]
[1770449632496,4.38884902,2011.8,2010.5,2.60788069]
[1770449635105,4.38884902,2011.8,2011.0,0.39575269]
[1770449635502,4.38884902,2011.8,2010.9,2.24031509]
[1770449636705,4.38884902,2011.8,2010.7,2.19672468]
[1770449637603,4.63755902,2011.7,2010.3,0.24884036]
[1770449637796,4.38884902,2011.5,2010.2,2.43297421]
[1770449638002,4.38884902,2011.5,2010.1,0.2489]
[1770449638202,4.38884902,2011.4,2010.0,0.24884036]
[1770449638508,4.38884902,2011.2,2010.0,0.24884036]
[1770449638698,4.38884902,2011.2,2010.0,0.25261436]
[1770449639098,4.38884902,2011.2,2010.0,2.33619425]
[1770449640008,4.38884902,2011.9,2010.4,2.06709599]
[1770449640504,4.38884902,2011.9,2010.6,1.92983953]
[1770449640711,4.38884902,2011.9,2010.5,0.24884036]
[1770449640909,4.38884902,2011.9,2010.5,2.17867989]
[1770449641105,4.38884902,2011.8,2010.5,2.17788819]
[1770449641811,4.38884902,2011.8,2010.8,1.91266784]
[1770449642309,4.38884902,2011.8,2011.0,1.89854143]
[1770449642503,4.38884902,2011.8,2010.1,1.8822132]
[1770449642811,4.38884902,2011.7,2010.1,1.8822132]
[1770449643601,7.17499773,2011.5,2010.0,0.003774]
[1770449643806,4.38884902,2011.4,2010.0,0.003774]
[1770449644006,4.38884902,2011.4,2010.0,1.89602398]
[1770449644209,4.38884902,2011.4,2010.0,0.003774]
[1770449644907,4.38884902,2011.4,2010.0,1.87973626]
[1770449646906,4.38884902,2011.4,2010.0,0.003774]
[1770449647102,4.22206972,2011.1,2010.0,0.003774]
[1770449647303,4.22206972,2011.1,2009.4,1.83313498]
[1770449647708,4.22206972,2011.0,2009.2,1.8207678]
[1770449647906,4.22206972,2011.0,2009.2,2.26097054]
[1770449648409,4.22206972,2011.0,2009.2,2.26684574]
[1770449648604,4.22206972,2010.8,2009.2,0.44607794]
[1770449648811,4.22206972,2010.4,2009.2,0.44607794]
[1770449649014,4.14353077,2010.1,2008.6,1.73690559]
[1770449649311,4.14353077,2010.1,2008.0,1.73045899]
[1770449649511,4.14353077,2009.8,2008.0,1.73045899]
[1770449649705,4.14353077,2009.8,2008.0,2.17268237]
[1770449649914,4.14353077,2009.5,2008.0,0.44650418]
[1770449650115,4.14353077,2009.5,2008.1,1.73045899]
[1770449650408,4.14353077,2009.5,2008.0,0.44650418]
[1770449650613,4.14353077,2009.4,2008.0,0.44650418]
[1770449651314,4.14353077,2009.0,2008.0,0.0042808]
[1770449651912,4.14353077,2009.0,2008.0,0.4446732]
[1770449653216,3.51260463,2009.0,2008.1,1.2109379]
[1770449654214,4.14353077,2009.3,2008.1,1.2109379]
[1770449654415,0.24891,2010.2,2008.1,1.2109379]
[1770449654416,4.14353077,2010.1,2008.1,1.2109379]
[1770449655314,4.14353077,2009.8,2008.1,1.2109379]
[1770449656819,4.14353077,2009.4,2008.1,1.2109379]
[1770449657511,4.14353077,2009.4,2008.0,0.4446732]
[1770449658620,4.14353077,2009.1,2008.0,0.4446732]
[1770449659113,4.14353077,2009.1,2008.0,2.38662191]
[1770449659513,6.16867583,2009.6,2008.0,2.38662191]
[1770449659714,4.14353077,2009.5,2008.0,2.63579191]
[1770449659908,4.14353077,2009.5,2008.3,1.92622153]
[1770449660112,4.14353077,2009.8,2008.5,1.91881761]
[1770449660309,4.14353077,2010.1,2008.8,1.9031392]
[1770449661316,4.14827886,2010.4,2008.8,1.9031392]
[1770449661516,4.14353077,2010.7,2009.3,2.13657297]
[1770449661823,4.14353077,2010.7,2009.5,1.88282488]
[1770449662028,4.14353077,2010.7,2009.5,2.13180488]
[1770449662316,4.14353077,2011.5,2009.7,1.89310873]
[1770449662519,4.14353077,2011.5,2009.7,2.14682648]
[1770449662718,4.14353077,2011.1,2009.7,1.89787648]
[1770449662920,4.14353077,2011.1,2009.7,0.00476775]
[1770449663121,4.14353077,2011.1,2009.7,1.88267155]
[1770449663924,4.14353077,2011.1,2009.7,0.00476775]
[1770449664322,4.14353077,2010.7,2008.8,1.86218595]
[1770449664622,4.14353077,2010.3,2009.2,1.27658321]
[1770449664820,4.14353077,2010.3,2008.8,1.86218595]
[1770449665018,4.14353077,2010.3,2008.9,1.86221257]
[1770449665321,4.14353077,2011.1,2009.2,1.84710862]
[1770449667425,4.14353077,2011.1,2009.4,2.12341301]
[1770449667629,4.14353077,2011.1,2009.6,1.87442301]
[1770449668023,4.14353077,2011.1,2009.9,1.87442301]
[1770449669936,4.14353077,2011.3,2010.0,0.24892]
[1770449670142,4.14353077,2011.3,2010.2,1.8991493]
[1770449671343,0.00392836,2011.5,2010.5,1.86861458]
[1770449671542,0.00392836,2011.5,2010.5,1.87217766]
[1770449671737,4.14745913,2011.5,2010.5,1.87217766]
[1770449672737,0.00392836,2011.5,2010.5,1.87217766]
[1770449673139,4.14745913,2011.5,2010.5,1.87217766]
[1770449673742,4.14745913,2011.5,2010.5,0.00356308]
[1770449673944,4.14745913,2011.5,2010.5,1.86810612]
[1770449674146,0.00392836,2011.5,2010.6,6.16867583]
[1770449674440,0.00392836,2011.5,2010.7,1.92835807]
[1770449674631,4.14353077,2011.9,2010.7,1.92835807]